fUST/lending_fUST_20250617
["ID","MTS","AMOUNT","RATE_DAILY","PERIOD"]
[366182658,1750103440146,-500.0,0.00023288,2]
[366182659,1750103440156,-500.0,0.00023288,2]
[366182660,1750103440165,-500.0,0.00023288,2]
[366182661,1750103440174,-500.0,0.00023288,2]
[366182662,1750103440183,-500.0,0.00023288,2]
[366182663,1750103440193,-500.0,0.00023288,2]
[366182664,1750103440202,-500.0,0.00023288,2]
[366182666,1750103440212,-500.0,0.00023288,2]
[366182668,1750103440221,-500.0,0.00023291,2]
[366182669,1750103440231,-500.0,0.00023314,2]
[366182670,1750103440241,-689.85,0.00023315,7]
[366182671,1750103440250,-620.4108234,0.00023388,2]
[366182672,1750103440260,-151.0,0.00023402,6]
[366182674,1750103440270,-689.85,0.00023415,4]
[366182676,1750103440280,-460.0,0.00023485,4]
[366182677,1750103440290,-460.0,0.00023485,4]
[366182678,1750103440300,-521.44,0.00023485,4]
[366182679,1750103440311,-460.0,0.00023485,4]
[366182683,1750103440457,-689.85,0.00023515,7]
[366182686,1750103440470,-460.0,0.0002356,4]
[366182688,1750103440480,-460.0,0.0002356,4]
[366182690,1750103440493,-460.0,0.0002356,4]
[366182692,1750103440503,-460.0,0.0002356,4]
[366182694,1750103440513,-619.02,0.0002356,4]
[366182696,1750103440522,-460.0,0.0002356,4]
[366182698,1750103440532,-460.0,0.0002356,4]
[366182700,1750103440543,-460.0,0.00023561,4]
[366182701,1750103440552,-5000.0,0.00023583,2]
[366182703,1750103440563,-689.85,0.00023615,4]
[366182705,1750103440573,-151.0,0.00023661,7]
[366182707,1750103440583,-689.85,0.00023715,5]
[366182709,1750103440594,-283.74270461,0.0002374,2]
[366182712,1750103440604,-460.0,0.00023759,4]
[366182714,1750103440615,-521.44,0.00023759,4]
[366182716,1750103440625,-460.0,0.00023759,4]
[366182717,1750103440635,-728.43,0.000238,2]
[366182719,1750103440644,-689.85,0.00023815,6]
[366182721,1750103440654,-460.0,0.00023834,4]
[366182723,1750103440666,-460.0,0.00023834,4]
[366182725,1750103440675,-597.64,0.00023834,4]
[366182727,1750103440686,-460.0,0.00023834,4]
[366182729,1750103440696,-619.02,0.00023834,4]
[366182731,1750103440706,-460.0,0.00023834,4]
[366182733,1750103440716,-460.0,0.00023834,4]
[366182735,1750103440725,-460.0,0.00023835,4]
[366182737,1750103440735,-620.4108234,0.00023864,2]
[366182739,1750103440744,-274.0,0.00023869,2]
[366182741,1750103440754,-689.85,0.00023915,7]
[366182743,1750103440764,-151.0,0.00023921,7]
[366182745,1750103440774,-3417.0,0.00023959,2]
[366182747,1750103440784,-158.66118946,0.00023973,2]
[366182749,1750103440794,-689.85,0.00024015,2]
[366182751,1750103440804,-460.0,0.00024033,4]
[366182753,1750103440814,-521.44,0.00024033,4]
[366182755,1750103440824,-460.0,0.00024033,4]
[366182757,1750103440834,-460.0,0.00024108,4]
[366182759,1750103440843,-460.0,0.00024108,4]
[366182761,1750103440853,-460.0,0.00024108,4]
[366182763,1750103440863,-619.02,0.00024108,4]
[366182765,1750103440872,-460.0,0.00024108,4]
[366182767,1750103440883,-460.0,0.00024108,4]
[366182769,1750103440892,-460.0,0.00024109,4]
[366182771,1750103440902,-689.85,0.00024115,5]
[366182773,1750103440912,-177.073212,0.00024137,2]
[366182775,1750103440921,-314.7076032,0.00024137,2]
[366182777,1750103440931,-573.9994554,0.00024137,2]
[366182779,1750103440940,-573.9994554,0.00024137,2]
[366182781,1750103440949,-177.073212,0.00024137,2]
[366182783,1750103440960,-177.073212,0.00024137,2]
[366182785,1750103440970,-573.9994554,0.00024137,2]
[366182787,1750103440979,-377.36072348,0.00024152,2]
[366182789,1750103440990,-151.0,0.0002418,7]
[366182791,1750103441001,-274.0,0.00024209,2]
[366182793,1750103441011,-964.0,0.00024213,2]
[366182795,1750103441021,-2160.0,0.00024213,2]
[366182797,1750103441030,-653.0,0.00024213,2]
[366182799,1750103441040,-406.0,0.00024213,2]
[366182801,1750103441050,-274.0,0.00024213,2]
[366182803,1750103441059,-689.85,0.00024215,7]
[366182805,1750103441071,-433.6651009,0.0002422,2]
[366182807,1750103441080,-460.0,0.00024307,4]
[366182809,1750103441090,-521.44,0.00024307,4]
[366182811,1750103441100,-254.36014627,0.00024307,4]
[366182813,1750103441110,-689.85,0.00024315,7]
[366182815,1750103441121,-620.4108234,0.00024339,2]
[366182817,1750103441130,-393.74504361,0.00024382,4]
[366182819,1750103441140,-460.0,0.00024382,4]
[366182821,1750103441150,-460.0,0.00024382,4]
[366182823,1750103441159,-619.02,0.00024382,4]
[366182825,1750103441169,-460.0,0.00024382,4]
[366182827,1750103441178,-460.0,0.00024382,4]
[366182829,1750103441189,-460.0,0.00024383,4]
[366182831,1750103441198,-215.0738,0.00024404,2]
[366182833,1750103441208,-689.85,0.00024415,6]
[366182835,1750103441218,-151.0,0.00024439,7]
[366182837,1750103441227,-1571.445995,0.00024458,3]
[366182839,1750103441236,-689.85,0.00024515,7]
[366182841,1750103441245,-4792.47,0.00024517,2]
[366182843,1750103441255,-201.0,0.0002456,11]
[366182845,1750103441265,-433.6651009,0.00024562,2]
[366182847,1750103441276,-521.44,0.00024581,4]
[366182849,1750103441287,-689.85,0.00024615,5]
[366182851,1750103441297,-460.0,0.00024656,4]
[366182853,1750103441306,-460.0,0.00024656,4]
[366182855,1750103441315,-619.02,0.00024656,4]
[366182857,1750103441325,-460.0,0.00024656,4]
[366182859,1750103441334,-460.0,0.00024656,4]
[366182861,1750103441344,-460.0,0.00024657,4]
[366182863,1750103441353,-151.0,0.00024699,7]
[366182865,1750103441362,-689.85,0.00024715,2]
[366182867,1750103441371,-274.0,0.00024755,2]
[366182869,1750103441380,-163.75,0.0002479,3]
[366182870,1750103441389,-491.28,0.0002479,3]
[366182873,1750103441399,-153.0,0.00024792,2]
[366182874,1750103441409,-153.0,0.00024792,2]
[366182876,1750103441422,-153.0,0.00024793,2]
[366182879,1750103441433,-153.0,0.00024793,2]
[366182880,1750103441443,-2000.0,0.000248,2]
[366182883,1750103441453,-2000.0,0.000248,2]
[366182885,1750103441464,-2000.0,0.000248,2]
[366182887,1750103441475,-16702.01611194,0.000248,3]
[366182889,1750103441484,-150.0,0.000248,5]
[366182891,1750103441494,-409.46,0.000248,31]
[366182893,1750103441504,-409.46,0.000248,31]
[366182895,1750103441514,-409.46,0.000248,31]
[366182897,1750103441524,-409.46,0.000248,31]
[366182899,1750103441534,-409.46,0.000248,31]
[366182900,1750103441543,-409.46,0.000248,31]
[366182902,1750103441554,-409.46,0.000248,31]
[366182904,1750103441564,-409.46,0.000248,31]
[366182906,1750103441574,-409.46,0.000248,31]
[366182908,1750103441584,-409.46,0.000248,31]
[366182910,1750103441594,-409.46,0.000248,31]
[366182912,1750103441603,-409.46,0.000248,31]
[366182914,1750103441613,-409.46,0.000248,31]
[366182916,1750103441623,-409.46,0.000248,31]
[366182918,1750103441633,-409.46,0.000248,31]
[366182920,1750103441642,-409.46,0.000248,31]
[366182922,1750103441652,-620.4108234,0.00024815,2]
[366182924,1750103441662,-11900.3765883,0.00024815,2]
[366182926,1750103441671,-689.85,0.00024815,6]
[366182928,1750103441680,-11900.3765883,0.00024836,2]
[366182930,1750103441690,-274.0,0.00024853,2]
[366182932,1750103441700,-1562.847558,0.00024854,2]
[366182934,1750103441710,-521.44,0.00024855,4]
[366182936,1750103441720,-11900.3765883,0.00024856,2]
[366182938,1750103441729,-433.66510092,0.00024889,2]
[366182940,1750103441738,-576848.77176593,0.000249,2]
[366182948,1750103441813,-589.67682391,0.000249,2]
[366182951,1750103441826,-307.7821574,0.000249,2]
[366186310,1750104100592,2232.47245518,0.00024657,120]
[366186322,1750104146750,261.960238,0.00013699,2]
[366186441,1750104390075,1000.0,0.00024658,120]
[366186443,1750104404699,1000.0,0.00021918,60]
[366186445,1750104405735,666.0,0.00019733,2]
[366186447,1750104598340,2225.9632699,0.00019625,2]
[366186448,1750104606467,343.14440146,0.0002,2]
[366186449,1750104606492,4656.85559854,0.0002,2]
[366186474,1750104632863,-184.335499,0.00020111,2]
[366186475,1750104632874,-261.960238,0.00020187,2]
[366186476,1750104632885,-300.0,0.00020459,2]
[366186477,1750104632895,-500.0,0.0002046,2]
[366186478,1750104632906,-500.0,0.0002046,2]
[366186479,1750104632915,-247.5882973,0.0002046,2]
[366186480,1750104632926,-495.36840699,0.0002046,2]
[366186481,1750104632936,-500.0,0.0002046,2]
[366186483,1750104632945,-465.71886687,0.0002046,2]
[366186487,1750104632967,-300.0,0.0002046,2]
[366186489,1750104632977,-24900.0,0.00020461,2]
[366186491,1750104632987,-1588.46,0.00020745,2]
[366186493,1750104632998,-500.0,0.00020999,2]
[366186495,1750104633008,-191.06639344,0.00020999,2]
[366186497,1750104633018,-3040.0,0.00021,10]
[366186499,1750104633028,-500.0,0.00021122,2]
[366186501,1750104633038,-160.0,0.0002141,2]
[366186503,1750104633048,-160.0,0.0002141,2]
[366186505,1750104633058,-160.0,0.0002141,2]
[366186507,1750104633068,-229.90125484,0.0002141,2]
[366186509,1750104633078,-160.0,0.0002141,2]
[366186511,1750104633087,-424.54874296,0.0002141,2]
[366186513,1750104633097,-12537.89035583,0.0002141,2]
[366186515,1750104633107,-160.0,0.0002141,2]
[366186517,1750104633117,-160.0,0.0002141,2]
[366186518,1750104633128,-460.0,0.00021917,2]
[366186519,1750104633138,-460.0,0.00021917,4]
[366186520,1750104633148,-460.0,0.00021917,4]
[366186521,1750104633158,-460.0,0.00021917,4]
[366186522,1750104633168,-460.0,0.00021917,4]
[366186523,1750104633178,-460.0,0.00021917,4]
[366186524,1750104633188,-460.0,0.00021917,4]
[366186525,1750104633198,-460.0,0.00021917,4]
[366186526,1750104633208,-476.57,0.00021917,4]
[366186527,1750104633218,-420.0,0.00021917,4]
[366186528,1750104633228,-460.0,0.00021917,4]
[366186529,1750104633238,-460.0,0.00021917,4]
[366186530,1750104633248,-460.0,0.00021917,4]
[366186531,1750104633257,-460.0,0.00021917,4]
[366186532,1750104633267,-460.0,0.00021917,4]
[366186533,1750104633277,-446.63043916,0.00021917,4]
[366186534,1750104633287,-460.0,0.00021917,4]
[366186535,1750104633296,-460.0,0.00021917,4]
[366186536,1750104633306,-460.0,0.00021917,4]
[366186537,1750104633317,-460.0,0.00021917,4]
[366186538,1750104633327,-460.0,0.00021917,4]
[366186539,1750104633337,-460.0,0.00021917,4]
[366186540,1750104633347,-460.0,0.00021917,4]
[366186541,1750104633357,-460.0,0.00021917,4]
[366186542,1750104633368,-460.0,0.00021917,4]
[366186543,1750104633378,-460.0,0.00021917,4]
[366186544,1750104633388,-460.0,0.00021917,4]
[366186545,1750104633398,-171.0,0.00022,2]
[366186546,1750104633408,-460.0,0.0002219,4]
[366186547,1750104633418,-460.0,0.0002219,2]
[366186548,1750104633428,-1000.0,0.0002219,2]
[366186549,1750104633438,-460.0,0.00022191,4]
[366186550,1750104633448,-460.0,0.00022191,4]
[366186551,1750104633459,-460.0,0.00022191,4]
[366186553,1750104633469,-257.78299186,0.00022191,4]
[366186555,1750104633479,-476.57,0.00022191,4]
[366186557,1750104633490,-254.36014627,0.00022191,4]
[366186558,1750104633500,-460.0,0.00022191,4]
[366186566,1750104633660,-460.0,0.00022191,4]
[366186567,1750104633706,-460.0,0.00022191,4]
[366186568,1750104633716,-460.0,0.00022191,4]
[366186569,1750104633727,-460.0,0.00022191,4]
[366186570,1750104633737,-460.0,0.00022191,4]
[366186571,1750104633747,-460.0,0.00022191,4]
[366186572,1750104633757,-460.0,0.00022191,4]
[366186573,1750104633767,-460.0,0.00022191,4]
[366186574,1750104633777,-460.0,0.00022464,4]
[366186575,1750104633787,-460.0,0.00022464,2]
[366186576,1750104633797,-460.0,0.00022465,4]
[366186577,1750104633811,-460.0,0.00022465,4]
[366186578,1750104633820,-460.0,0.00022465,4]
[366186579,1750104633829,-476.57,0.00022465,4]
[366186580,1750104633839,-460.0,0.00022465,4]
[366186581,1750104633848,-460.0,0.00022465,4]
[366186582,1750104633857,-460.0,0.00022465,4]
[366186583,1750104633867,-460.0,0.00022465,4]
[366186584,1750104633878,-460.0,0.00022465,4]
[366186585,1750104633888,-504.41,0.00022465,4]
[366186586,1750104633897,-460.0,0.00022465,4]
[366186587,1750104633907,-221.01495406,0.00022557,2]
[366186588,1750104633917,-500.0,0.00022592,2]
[366186589,1750104633927,-500.0,0.000226,2]
[366186590,1750104633936,-500.0,0.000226,2]
[366186591,1750104633946,-3176.92,0.00022631,2]
[366186592,1750104633955,-503.10535846,0.0002265,2]
[366186593,1750104633967,-500.0,0.00022656,2]
[366186594,1750104633977,-501.2229364,0.00022694,2]
[366186595,1750104633987,-500.0,0.00022694,2]
[366186596,1750104633997,-500.0,0.00022713,2]
[366186597,1750104634008,-500.0,0.0002273,2]
[366186598,1750104634017,-500.0,0.0002273,2]
[366186599,1750104634027,-446.20479493,0.0002273,2]
[366186600,1750104634036,-719.0,0.00022733,2]
[366186601,1750104634046,-460.0,0.00022738,4]
[366186602,1750104634056,-460.0,0.00022738,2]
[366186603,1750104634065,-460.0,0.00022739,4]
[366186604,1750104634074,-476.57,0.00022739,4]
[366186605,1750104634084,-460.0,0.00022739,4]
[366186606,1750104634094,-460.0,0.00022739,4]
[366186607,1750104634104,-460.0,0.00022739,4]
[366186608,1750104634114,-460.0,0.00022739,4]
[366186609,1750104634125,-460.0,0.00022739,4]
[366186610,1750104634135,-460.0,0.00022739,4]
[366186611,1750104634144,-500.0,0.00022747,2]
[366186612,1750104634154,-500.0,0.00022747,2]
[366186613,1750104634163,-208.8453268,0.00022747,2]
[366186614,1750104634173,-500.0,0.00022769,2]
[366186615,1750104634183,-719.0,0.00022872,2]
[366186616,1750104634192,-151.0,0.00022916,6]
[366186617,1750104634202,-1000.0,0.00022936,2]
[366186618,1750104634211,-460.0,0.00023012,4]
[366186619,1750104634222,-460.0,0.00023012,2]
[366186620,1750104634232,-460.0,0.00023013,4]
[366186621,1750104634242,-476.57,0.00023013,4]
[366186622,1750104634252,-460.0,0.00023013,4]
[366186623,1750104634261,-460.0,0.00023013,4]
[366186624,1750104634271,-460.0,0.00023013,4]
[366186625,1750104634281,-460.0,0.00023013,4]
[366186626,1750104634292,-460.0,0.00023013,4]
[366186627,1750104634302,-460.0,0.00023013,4]
[366186628,1750104634312,-1064.75155424,0.0002305,2]
[366186629,1750104634322,-250.88,0.0002309,10]
[366186630,1750104634332,-406.0,0.00023093,2]
[366186631,1750104634343,-3000.0,0.000231,2]
[366186632,1750104634353,-3000.0,0.0002311,2]
[366186633,1750104634363,-3000.0,0.0002312,2]
[366186634,1750104634374,-3000.0,0.0002313,2]
[366186635,1750104634384,-1000.0,0.0002314,2]
[366186636,1750104634394,-3000.0,0.0002314,2]
[366186637,1750104634404,-500.0,0.00023148,2]
[366186638,1750104634414,-3000.0,0.0002315,2]
[366186639,1750104634424,-3000.0,0.0002316,2]
[366186640,1750104634433,-3000.0,0.0002317,2]
[366186641,1750104634443,-151.0,0.00023172,6]
[366186642,1750104634453,-500.0,0.00023179,2]
[366186643,1750104634463,-160.0,0.00023179,2]
[366186644,1750104634473,-3000.0,0.0002318,2]
[366186645,1750104634483,-3000.0,0.0002319,2]
[366186646,1750104634493,-3000.0,0.000232,2]
[366186647,1750104634503,-3000.0,0.0002321,2]
[366186648,1750104634514,-3000.0,0.0002322,2]
[366186649,1750104634523,-3000.0,0.0002323,2]
[366186650,1750104634535,-151.0,0.00023234,2]
[366186651,1750104634545,-5000.0,0.00023234,2]
[366186652,1750104634555,-210.8812712,0.00023234,2]
[366186653,1750104634566,-500.0,0.00023234,2]
[366186654,1750104634577,-500.0,0.00023234,2]
[366186655,1750104634588,-500.0,0.00023234,2]
[366186656,1750104634597,-500.0,0.00023234,2]
[366186657,1750104634607,-2938.92270128,0.00023234,2]
[366186658,1750104634617,-500.0,0.00023234,2]
[366186659,1750104634627,-1031.38245891,0.00023234,2]
[366186660,1750104634637,-500.0,0.00023234,2]
[366186661,1750104634647,-500.0,0.00023234,2]
[366186662,1750104634657,-500.0,0.00023234,2]
[366186663,1750104634668,-500.0,0.00023234,2]
[366186664,1750104634678,-500.0,0.00023234,2]
[366186665,1750104634687,-500.0,0.00023234,2]
[366186666,1750104634698,-500.0,0.00023234,2]
[366186667,1750104634707,-500.0,0.00023234,2]
[366186668,1750104634717,-500.0,0.00023234,2]
[366186669,1750104634727,-500.0,0.00023234,2]
[366186670,1750104634737,-207.4,0.00023234,2]
[366186671,1750104634747,-500.0,0.00023234,2]
[366186672,1750104634758,-500.0,0.00023234,2]
[366186673,1750104634768,-500.0,0.00023234,2]
[366186674,1750104634777,-500.0,0.00023234,2]
[366186675,1750104634787,-500.0,0.00023234,2]
[366186676,1750104634800,-3000.0,0.0002324,2]
[366186677,1750104634810,-3000.0,0.0002325,2]
[366186678,1750104634996,-3000.0,0.0002326,2]
[366186679,1750104635007,-705.49,0.0002327,3]
[366186680,1750104635017,-176.37,0.0002327,3]
[366186681,1750104635035,-529.16,0.0002327,3]
[366186682,1750104635050,-3000.0,0.0002327,2]
[366186683,1750104635060,-352.75,0.00023276,3]
[366186684,1750104635070,-502.90397211,0.00023278,2]
[366186685,1750104635081,-3000.0,0.0002328,2]
[366186686,1750104635091,-460.0,0.00023286,4]
[366186687,1750104635102,-460.0,0.00023286,2]
[366186688,1750104635112,-460.0,0.00023287,4]
[366186689,1750104635122,-476.57,0.00023287,4]
[366186690,1750104635132,-460.0,0.00023287,4]
[366186691,1750104635142,-460.0,0.00023287,4]
[366186692,1750104635152,-460.0,0.00023287,4]
[366186693,1750104635164,-460.0,0.00023287,4]
[366186694,1750104635174,-460.0,0.00023287,4]
[366186695,1750104635185,-460.0,0.00023287,4]
[366186696,1750104635196,-500.0,0.00023288,2]
[366186697,1750104635207,-500.0,0.00023288,2]
[366186698,1750104635217,-283.34655642,0.00023288,2]
[366186699,1750104635227,-3000.0,0.0002329,2]
[366186700,1750104635239,-1009.50816501,0.00023295,2]
[366186701,1750104635250,-719.0,0.00023297,2]
[366186702,1750104635260,-3000.0,0.000233,2]
[366186703,1750104635269,-3615.770869,0.0002331,2]
[366186704,1750104635279,-500.0,0.00023314,2]
[366186705,1750104635289,-354.146424,0.00023315,2]
[366186706,1750104635299,-573.9994554,0.00023315,2]
[366186707,1750104635310,-177.073212,0.00023315,2]
[366186708,1750104635319,-1147.9989108,0.00023315,2]
[366186709,1750104635330,-354.146424,0.00023315,2]
[366186710,1750104635340,-937.6396044,0.00023315,2]
[366186711,1750104635350,-354.146424,0.00023315,2]
[366186712,1750104635359,-1147.9989108,0.00023315,2]
[366186713,1750104635368,-317.8616018,0.00023315,2]
[366186714,1750104635378,-153.0,0.00023315,2]
[366186715,1750104635388,-151.0,0.00023427,6]
[366186716,1750104635398,-1064.75155422,0.00023491,2]
[366186717,1750104635408,-475.31503575,0.0002356,4]
[366186718,1750104635419,-460.0,0.0002356,2]
[366186719,1750104635428,-532.74,0.00023561,4]
[366186720,1750104635438,-476.57,0.00023561,4]
[366186721,1750104635447,-460.0,0.00023561,4]
[366186722,1750104635457,-460.0,0.00023561,4]
[366186723,1750104635468,-460.0,0.00023561,4]
[366186724,1750104635478,-460.0,0.00023561,4]
[366186725,1750104635488,-460.0,0.00023561,4]
[366186726,1750104635498,-460.0,0.00023561,4]
[366186727,1750104635507,-151.0,0.00023682,7]
[366186728,1750104635517,-1500.0,0.00023688,2]
[366186729,1750104635527,-196.90339151,0.00023727,3]
[366186730,1750104635537,-5000.0,0.00023782,2]
[366186731,1750104635546,-460.0,0.00023834,2]
[366186732,1750104635556,-476.57,0.00023835,4]
[366186733,1750104635566,-460.0,0.00023835,4]
[366186734,1750104635576,-460.0,0.00023835,4]
[366186735,1750104635585,-460.0,0.00023835,4]
[366186736,1750104635595,-460.0,0.00023835,4]
[366186737,1750104635605,-460.0,0.00023835,4]
[366186738,1750104635614,-460.0,0.00023835,4]
[366186739,1750104635624,-1064.75155422,0.00023933,2]
[366186740,1750104635634,-151.0,0.00023937,7]
[366186741,1750104635649,-433.6651009,0.00023938,2]
[366186742,1750104635659,-158.66118946,0.00023973,2]
[366186743,1750104635669,-655.58,0.00024,2]
[366186744,1750104635679,-365.4091647,0.00024,2]
[366186745,1750104635689,-365.4091647,0.00024,2]
[366186746,1750104635699,-365.4091647,0.00024,2]
[366186747,1750104635709,-365.4091647,0.00024,2]
[366186748,1750104635719,-365.4091647,0.00024,2]
[366186749,1750104635729,-364.6117173,0.00024,2]
[366186750,1750104635739,-365.4091647,0.00024,2]
[366186751,1750104635748,-365.4091647,0.00024,2]
[366186752,1750104635759,-365.4091647,0.00024,2]
[366186753,1750104635768,-354.0035798,0.00024,2]
[366186754,1750104635778,-460.0,0.00024108,2]
[366186755,1750104635788,-476.57,0.00024109,4]
[366186756,1750104635797,-460.0,0.00024109,4]
[366186757,1750104635809,-460.0,0.00024109,4]
[366186758,1750104635819,-460.0,0.00024109,4]
[366186759,1750104635830,-169.38,0.00024109,4]
[366186760,1750104635839,-460.0,0.00024109,4]
[366186761,1750104635850,-460.0,0.00024109,4]
[366186762,1750104635860,-433.6651009,0.00024125,2]
[366186763,1750104635870,-317.8616018,0.00024137,2]
[366186764,1750104635881,-420.7207632,0.00024137,2]
[366186765,1750104635891,-354.146424,0.00024137,2]
[366186766,1750104635901,-1147.9989108,0.00024137,2]
[366186767,1750104635910,-346.9248725,0.00024137,2]
[366186768,1750104635920,-153.0,0.00024137,2]
[366186769,1750104635930,-153.0,0.00024137,2]
[366186770,1750104635940,-158.9308009,0.00024137,2]
[366186771,1750104635951,-176.9937618,0.00024137,2]
[366186772,1750104635960,-158.9308009,0.00024137,2]
[366186773,1750104635971,-1147.5719738,0.00024137,2]
[366186774,1750104635981,-158.9308009,0.00024137,2]
[366186775,1750104635990,-153.0,0.00024137,2]
[366186776,1750104636001,-158.265715,0.00024137,2]
[366186777,1750104636010,-153.0,0.00024137,2]
[366186778,1750104636020,-323.62882194,0.00024185,2]
[366186779,1750104636030,-151.0,0.00024192,7]
[366186780,1750104636040,-150.0,0.00024213,2]
[366186781,1750104636050,-150.0,0.00024213,2]
[366186782,1750104636059,-150.0,0.00024213,2]
[366186783,1750104636069,-1000.0,0.00024236,2]
[366186784,1750104636079,-5000.0,0.0002433,2]
[366186785,1750104636089,-1064.75155422,0.00024374,2]
[366186786,1750104636100,-460.0,0.00024382,2]
[366186787,1750104636109,-476.57,0.00024383,4]
[366186788,1750104636119,-460.0,0.00024383,4]
[366186789,1750104636129,-460.0,0.00024383,4]
[366186790,1750104636139,-460.0,0.00024383,4]
[366186791,1750104636148,-246.80951429,0.00024383,4]
[366186792,1750104636158,-534.08219802,0.00024383,4]
[366186793,1750104636168,-180.676574,0.00024411,2]
[366186794,1750104636177,-153.0,0.00024411,2]
[366186795,1750104636186,-151.0,0.00024448,7]
[366186796,1750104636196,-1571.445995,0.00024458,3]
[366186797,1750104636206,-719.0,0.00024459,2]
[366186798,1750104636215,-4765.38,0.00024517,2]
[366186799,1750104636225,-800.0,0.0002452,2]
[366186800,1750104636234,-186.68,0.00024549,2]
[366186801,1750104636244,-433.66510092,0.0002456,2]
[366186802,1750104636254,-168.0,0.00024579,2]
[366186803,1750104636264,-215.0738,0.00024603,2]
[366186804,1750104636273,-201.0,0.0002461,11]
[366186805,1750104636284,-1410.98,0.0002464,3]
[366186806,1750104636293,-352.74,0.0002464,3]
[366186807,1750104636303,-705.5,0.00024646,3]
[366186808,1750104636314,-434.08,0.00024656,2]
[366186809,1750104636323,-476.57,0.00024657,4]
[366186810,1750104636333,-460.0,0.00024657,4]
[366186811,1750104636343,-460.0,0.00024657,4]
[366186812,1750104636353,-184.9,0.00024657,4]
[366186813,1750104636362,-153.0,0.00024688,2]
[366186814,1750104636373,-153.0,0.00024688,2]
[366186815,1750104636383,-153.0,0.00024688,2]
[366186816,1750104636393,-153.0,0.00024688,2]
[366186817,1750104636402,-153.0,0.00024688,2]
[366186818,1750104636412,-153.0,0.00024688,2]
[366186819,1750104636422,-153.0,0.00024688,2]
[366186820,1750104636432,-153.0,0.00024688,2]
[366186821,1750104636442,-153.0,0.00024688,2]
[366186822,1750104636452,-153.0,0.00024688,2]
[366186823,1750104636462,-153.0,0.00024688,2]
[366186824,1750104636472,-153.0,0.00024688,2]
[366186825,1750104636482,-153.0,0.00024688,2]
[366186826,1750104636491,-153.0,0.00024689,2]
[366186827,1750104636502,-153.0,0.00024689,2]
[366186828,1750104636512,-153.0,0.00024689,2]
[366186829,1750104636522,-153.0,0.00024689,2]
[366186830,1750104636532,-153.0,0.00024689,2]
[366186831,1750104636542,-153.0,0.00024689,2]
[366186832,1750104636551,-153.0,0.00024689,2]
[366186833,1750104636561,-153.0,0.00024689,2]
[366186834,1750104636571,-153.0,0.00024689,2]
[366186835,1750104636581,-153.0,0.00024689,2]
[366186836,1750104636591,-153.0,0.00024689,2]
[366186837,1750104636600,-151.0,0.00024703,7]
[366186838,1750104636610,-2000.0,0.000248,2]
[366186839,1750104636621,-2000.0,0.000248,2]
[366186840,1750104636630,-2000.0,0.000248,2]
[366186841,1750104636640,-150.0,0.000248,5]
[366186842,1750104636650,-409.46,0.000248,31]
[366186843,1750104636659,-409.46,0.000248,31]
[366186844,1750104636669,-409.46,0.000248,31]